{"text_format":"3","workbook":"xlsx","n_sheets":3,"sheets":["Podatki o možni stranki","Napovedana prodaja ","Mesečna tehtana napoved"],"not_rendered":{"charts":1,"defined_names":10},"read":"whole","date_system":"1900"}

{"sheet":"Podatki o možni stranki","index":0,"n_rows":9,"n_cols":10,"rows_kept":9,"merged":[[3,1,3,8]]}
[null,"Ime podjetja"]
[null,"Sledilnik podrobnosti možnih strank"]
[null,{"$f":"TODAY()","v":"2018-07-25"}]
[null,{"$f":"Ime_podjetja","v":"Ime podjetja"},{"$nulls":7},"ZAUPNO"]
[null,"Ime možne stranke","Stik možne stranke","Možna stranka \nVir","Možna stranka \nRegija","Možna stranka \nVrsta","Morebitna priložnost","Možnost \nprodaje","Predvidevanje \nZapri","Tehtano \nPredvidevanje"]
[null,"A. Datum Corporation",{"$nulls":3},"Strateško",{"v":300000,"d":"300,000.00 €"},{"v":0.9,"d":"90 %"},"Januar",{"$f":"IFERROR(IF(PodatkiMožneStranke[Možnost \nprodaje]<>\"\",PodatkiMožneStranke[Možnost \nprodaje]*PodatkiMožneStranke[Morebitna priložnost],\"\"),\"\")","v":{"v":270000,"d":"270,000.00 €"}}]
[null,"Adventure Works",{"$nulls":3},"Strateško",{"v":200000,"d":"200,000.00 €"},{"v":0.1,"d":"10 %"},"Februar",{"$f":"IFERROR(IF(PodatkiMožneStranke[Možnost \nprodaje]<>\"\",PodatkiMožneStranke[Možnost \nprodaje]*PodatkiMožneStranke[Morebitna priložnost],\"\"),\"\")","v":{"v":20000,"d":"20,000.00 €"}}]
[null,"Alpska smučarska hiša",{"$nulls":3},"Taktično",{"v":100000,"d":"100,000.00 €"},{"v":0.2,"d":"20 %"},"Marec",{"$f":"IFERROR(IF(PodatkiMožneStranke[Možnost \nprodaje]<>\"\",PodatkiMožneStranke[Možnost \nprodaje]*PodatkiMožneStranke[Morebitna priložnost],\"\"),\"\")","v":{"v":20000,"d":"20,000.00 €"}}]
[null,"Skupaj",{"$nulls":4},{"$f":"SUBTOTAL(109,PodatkiMožneStranke[Morebitna priložnost])","v":{"v":600000,"d":"600,000.00 €"}},null,null,{"$f":"SUBTOTAL(109,PodatkiMožneStranke[Tehtano \nPredvidevanje])","v":{"v":310000,"d":"310,000.00 €"}}]

{"sheet":"Napovedana prodaja ","index":1,"n_rows":21,"n_cols":14,"rows_kept":21,"merged":[[3,1,3,11],[3,12,3,13]]}
[null,{"$f":"Ime_podjetja","v":"Ime podjetja"}]
[null,"Napovedana prodaja"]
[null,{"$f":"DatumSledilnika","v":"2018-07-25"}]
[null,{"$f":"Ime_podjetja","v":"Ime podjetja"},{"$nulls":10},"ZAUPNO"]
[null,"Ime možne stranke","Januar \nPredvidevanje","Februar \nPredvidevanje","Marec \nPredvidevanje","April \nPredvidevanje","Maj \nPredvidevanje","Junij \nPredvidevanje","Julij napoved","Avgust \nPredvidevanje","September \nPredvidevanje","Oktober \nPredvidevanje","November \nPredvidevanje","December \nPredvidevanje"]
[null,{"$f":"IFERROR(IF(AND(PodatkiMožneStranke[Ime možne stranke] <> \"\", ROW(NapovedanaProdaja[Ime možne stranke])<>ZadnjiVnos),PodatkiMožneStranke[Ime možne stranke], \"\"),\"\")","v":"A. Datum Corporation"},{"$f":"IFERROR(IF(PodatkiMožneStranke[Predvidevanje \nZapri] <>\"\",IF(PodatkiMožneStranke[Predvidevanje \nZapri]= \"Januar\",PodatkiMožneStranke[Tehtano \nPredvidevanje],0),\"\"),\"\")","v":{"v":270000,"d":"270,000 €"}},{"$f":"IFERROR(IF(PodatkiMožneStranke[Predvidevanje \nZapri] <>\"\",IF(PodatkiMožneStranke[Predvidevanje \nZapri] = \"Februar\",PodatkiMožneStranke[Tehtano \nPredvidevanje],0),\"\"),\"\")","v":{"v":0,"d":"0 €"}},{"$f":"IFERROR(IF(PodatkiMožneStranke[Predvidevanje \nZapri] <>\"\",IF(PodatkiMožneStranke[Predvidevanje \nZapri] = \"Marec\",PodatkiMožneStranke[Tehtano \nPredvidevanje],0),\"\"),\"\")","v":{"v":0,"d":"0 €"}},{"$f":"IFERROR(IF(PodatkiMožneStranke[Predvidevanje \nZapri] <>\"\",IF(PodatkiMožneStranke[Predvidevanje \nZapri] = \"April\",PodatkiMožneStranke[Tehtano \nPredvidevanje],0),\"\"),\"\")","v":{"v":0,"d":"0 €"}},{"$f":"IFERROR(IF(PodatkiMožneStranke[Predvidevanje \nZapri] <>\"\",IF(PodatkiMožneStranke[Predvidevanje \nZapri] = \"Maj\",PodatkiMožneStranke[Tehtano \nPredvidevanje],0),\"\"),\"\")","v":{"v":0,"d":"0 €"}},{"$f":"IFERROR(IF(PodatkiMožneStranke[Predvidevanje \nZapri] <>\"\",IF(PodatkiMožneStranke[Predvidevanje \nZapri] = \"Junij\",PodatkiMožneStranke[Tehtano \nPredvidevanje],0),\"\"),\"\")","v":{"v":0,"d":"0 €"}},{"$f":"IFERROR(IF(PodatkiMožneStranke[Predvidevanje \nZapri] <>\"\",IF(PodatkiMožneStranke[Predvidevanje \nZapri] = \"Julij\",PodatkiMožneStranke[Tehtano \nPredvidevanje],0),\"\"),\"\")","v":{"v":0,"d":"0 €"}},{"$f":"IFERROR(IF(PodatkiMožneStranke[Predvidevanje \nZapri] <>\"\",IF(PodatkiMožneStranke[Predvidevanje \nZapri] = \"Avgust\",PodatkiMožneStranke[Tehtano \nPredvidevanje],0),\"\"),\"\")","v":{"v":0,"d":"0 €"}},{"$f":"IFERROR(IF(PodatkiMožneStranke[Predvidevanje \nZapri] <>\"\",IF(PodatkiMožneStranke[Predvidevanje \nZapri] = \"September\",PodatkiMožneStranke[Tehtano \nPredvidevanje],0),\"\"),\"\")","v":{"v":0,"d":"0 €"}},{"$f":"IFERROR(IF(PodatkiMožneStranke[Predvidevanje \nZapri] <>\"\",IF(PodatkiMožneStranke[Predvidevanje \nZapri] = \"Oktober\",PodatkiMožneStranke[Tehtano \nPredvidevanje],0),\"\"),\"\")","v":{"v":0,"d":"0 €"}},{"$f":"IFERROR(IF(PodatkiMožneStranke[Predvidevanje \nZapri] <>\"\",IF(PodatkiMožneStranke[Predvidevanje \nZapri] = \"November\",PodatkiMožneStranke[Tehtano \nPredvidevanje],0),\"\"),\"\")","v":{"v":0,"d":"0 €"}},{"$f":"IFERROR(IF(PodatkiMožneStranke[Predvidevanje \nZapri] <>\"\",IF(PodatkiMožneStranke[Predvidevanje \nZapri] = \"December\",PodatkiMožneStranke[Tehtano \nPredvidevanje],0),\"\"),\"\")","v":{"v":0,"d":"0 €"}}]
[null,{"$f":"IFERROR(IF(AND(PodatkiMožneStranke[Ime možne stranke] <> \"\", ROW(NapovedanaProdaja[Ime možne stranke])<>ZadnjiVnos),PodatkiMožneStranke[Ime možne stranke], \"\"),\"\")","v":"Adventure Works"},{"$f":"IFERROR(IF(PodatkiMožneStranke[Predvidevanje \nZapri] <>\"\",IF(PodatkiMožneStranke[Predvidevanje \nZapri]= \"Januar\",PodatkiMožneStranke[Tehtano \nPredvidevanje],0),\"\"),\"\")","v":{"v":0,"d":"0 €"}},{"$f":"IFERROR(IF(PodatkiMožneStranke[Predvidevanje \nZapri] <>\"\",IF(PodatkiMožneStranke[Predvidevanje \nZapri] = \"Februar\",PodatkiMožneStranke[Tehtano \nPredvidevanje],0),\"\"),\"\")","v":{"v":20000,"d":"20,000 €"}},{"$f":"IFERROR(IF(PodatkiMožneStranke[Predvidevanje \nZapri] <>\"\",IF(PodatkiMožneStranke[Predvidevanje \nZapri] = \"Marec\",PodatkiMožneStranke[Tehtano \nPredvidevanje],0),\"\"),\"\")","v":{"v":0,"d":"0 €"}},{"$f":"IFERROR(IF(PodatkiMožneStranke[Predvidevanje \nZapri] <>\"\",IF(PodatkiMožneStranke[Predvidevanje \nZapri] = \"April\",PodatkiMožneStranke[Tehtano \nPredvidevanje],0),\"\"),\"\")","v":{"v":0,"d":"0 €"}},{"$f":"IFERROR(IF(PodatkiMožneStranke[Predvidevanje \nZapri] <>\"\",IF(PodatkiMožneStranke[Predvidevanje \nZapri] = \"Maj\",PodatkiMožneStranke[Tehtano \nPredvidevanje],0),\"\"),\"\")","v":{"v":0,"d":"0 €"}},{"$f":"IFERROR(IF(PodatkiMožneStranke[Predvidevanje \nZapri] <>\"\",IF(PodatkiMožneStranke[Predvidevanje \nZapri] = \"Junij\",PodatkiMožneStranke[Tehtano \nPredvidevanje],0),\"\"),\"\")","v":{"v":0,"d":"0 €"}},{"$f":"IFERROR(IF(PodatkiMožneStranke[Predvidevanje \nZapri] <>\"\",IF(PodatkiMožneStranke[Predvidevanje \nZapri] = \"Julij\",PodatkiMožneStranke[Tehtano \nPredvidevanje],0),\"\"),\"\")","v":{"v":0,"d":"0 €"}},{"$f":"IFERROR(IF(PodatkiMožneStranke[Predvidevanje \nZapri] <>\"\",IF(PodatkiMožneStranke[Predvidevanje \nZapri] = \"Avgust\",PodatkiMožneStranke[Tehtano \nPredvidevanje],0),\"\"),\"\")","v":{"v":0,"d":"0 €"}},{"$f":"IFERROR(IF(PodatkiMožneStranke[Predvidevanje \nZapri] <>\"\",IF(PodatkiMožneStranke[Predvidevanje \nZapri] = \"September\",PodatkiMožneStranke[Tehtano \nPredvidevanje],0),\"\"),\"\")","v":{"v":0,"d":"0 €"}},{"$f":"IFERROR(IF(PodatkiMožneStranke[Predvidevanje \nZapri] <>\"\",IF(PodatkiMožneStranke[Predvidevanje \nZapri] = \"Oktober\",PodatkiMožneStranke[Tehtano \nPredvidevanje],0),\"\"),\"\")","v":{"v":0,"d":"0 €"}},{"$f":"IFERROR(IF(PodatkiMožneStranke[Predvidevanje \nZapri] <>\"\",IF(PodatkiMožneStranke[Predvidevanje \nZapri] = \"November\",PodatkiMožneStranke[Tehtano \nPredvidevanje],0),\"\"),\"\")","v":{"v":0,"d":"0 €"}},{"$f":"IFERROR(IF(PodatkiMožneStranke[Predvidevanje \nZapri] <>\"\",IF(PodatkiMožneStranke[Predvidevanje \nZapri] = \"December\",PodatkiMožneStranke[Tehtano \nPredvidevanje],0),\"\"),\"\")","v":{"v":0,"d":"0 €"}}]
[null,{"$f":"IFERROR(IF(AND(PodatkiMožneStranke[Ime možne stranke] <> \"\", ROW(NapovedanaProdaja[Ime možne stranke])<>ZadnjiVnos),PodatkiMožneStranke[Ime možne stranke], \"\"),\"\")","v":"Alpska smučarska hiša"},{"$f":"IFERROR(IF(PodatkiMožneStranke[Predvidevanje \nZapri] <>\"\",IF(PodatkiMožneStranke[Predvidevanje \nZapri]= \"Januar\",PodatkiMožneStranke[Tehtano \nPredvidevanje],0),\"\"),\"\")","v":{"v":0,"d":"0 €"}},{"$f":"IFERROR(IF(PodatkiMožneStranke[Predvidevanje \nZapri] <>\"\",IF(PodatkiMožneStranke[Predvidevanje \nZapri] = \"Februar\",PodatkiMožneStranke[Tehtano \nPredvidevanje],0),\"\"),\"\")","v":{"v":0,"d":"0 €"}},{"$f":"IFERROR(IF(PodatkiMožneStranke[Predvidevanje \nZapri] <>\"\",IF(PodatkiMožneStranke[Predvidevanje \nZapri] = \"Marec\",PodatkiMožneStranke[Tehtano \nPredvidevanje],0),\"\"),\"\")","v":{"v":20000,"d":"20,000 €"}},{"$f":"IFERROR(IF(PodatkiMožneStranke[Predvidevanje \nZapri] <>\"\",IF(PodatkiMožneStranke[Predvidevanje \nZapri] = \"April\",PodatkiMožneStranke[Tehtano \nPredvidevanje],0),\"\"),\"\")","v":{"v":0,"d":"0 €"}},{"$f":"IFERROR(IF(PodatkiMožneStranke[Predvidevanje \nZapri] <>\"\",IF(PodatkiMožneStranke[Predvidevanje \nZapri] = \"Maj\",PodatkiMožneStranke[Tehtano \nPredvidevanje],0),\"\"),\"\")","v":{"v":0,"d":"0 €"}},{"$f":"IFERROR(IF(PodatkiMožneStranke[Predvidevanje \nZapri] <>\"\",IF(PodatkiMožneStranke[Predvidevanje \nZapri] = \"Junij\",PodatkiMožneStranke[Tehtano \nPredvidevanje],0),\"\"),\"\")","v":{"v":0,"d":"0 €"}},{"$f":"IFERROR(IF(PodatkiMožneStranke[Predvidevanje \nZapri] <>\"\",IF(PodatkiMožneStranke[Predvidevanje \nZapri] = \"Julij\",PodatkiMožneStranke[Tehtano \nPredvidevanje],0),\"\"),\"\")","v":{"v":0,"d":"0 €"}},{"$f":"IFERROR(IF(PodatkiMožneStranke[Predvidevanje \nZapri] <>\"\",IF(PodatkiMožneStranke[Predvidevanje \nZapri] = \"Avgust\",PodatkiMožneStranke[Tehtano \nPredvidevanje],0),\"\"),\"\")","v":{"v":0,"d":"0 €"}},{"$f":"IFERROR(IF(PodatkiMožneStranke[Predvidevanje \nZapri] <>\"\",IF(PodatkiMožneStranke[Predvidevanje \nZapri] = \"September\",PodatkiMožneStranke[Tehtano \nPredvidevanje],0),\"\"),\"\")","v":{"v":0,"d":"0 €"}},{"$f":"IFERROR(IF(PodatkiMožneStranke[Predvidevanje \nZapri] <>\"\",IF(PodatkiMožneStranke[Predvidevanje \nZapri] = \"Oktober\",PodatkiMožneStranke[Tehtano \nPredvidevanje],0),\"\"),\"\")","v":{"v":0,"d":"0 €"}},{"$f":"IFERROR(IF(PodatkiMožneStranke[Predvidevanje \nZapri] <>\"\",IF(PodatkiMožneStranke[Predvidevanje \nZapri] = \"November\",PodatkiMožneStranke[Tehtano \nPredvidevanje],0),\"\"),\"\")","v":{"v":0,"d":"0 €"}},{"$f":"IFERROR(IF(PodatkiMožneStranke[Predvidevanje \nZapri] <>\"\",IF(PodatkiMožneStranke[Predvidevanje \nZapri] = \"December\",PodatkiMožneStranke[Tehtano \nPredvidevanje],0),\"\"),\"\")","v":{"v":0,"d":"0 €"}}]
[null,{"$f":"IFERROR(IF(AND(PodatkiMožneStranke[Ime možne stranke] <> \"\", ROW(NapovedanaProdaja[Ime možne stranke])<>ZadnjiVnos),PodatkiMožneStranke[Ime možne stranke], \"\"),\"\")","v":""},{"$f":"IFERROR(IF(PodatkiMožneStranke[Predvidevanje \nZapri] <>\"\",IF(PodatkiMožneStranke[Predvidevanje \nZapri]= \"Januar\",PodatkiMožneStranke[Tehtano \nPredvidevanje],0),\"\"),\"\")","v":""},{"$f":"IFERROR(IF(PodatkiMožneStranke[Predvidevanje \nZapri] <>\"\",IF(PodatkiMožneStranke[Predvidevanje \nZapri] = \"Februar\",PodatkiMožneStranke[Tehtano \nPredvidevanje],0),\"\"),\"\")","v":""},{"$f":"IFERROR(IF(PodatkiMožneStranke[Predvidevanje \nZapri] <>\"\",IF(PodatkiMožneStranke[Predvidevanje \nZapri] = \"Marec\",PodatkiMožneStranke[Tehtano \nPredvidevanje],0),\"\"),\"\")","v":""},{"$f":"IFERROR(IF(PodatkiMožneStranke[Predvidevanje \nZapri] <>\"\",IF(PodatkiMožneStranke[Predvidevanje \nZapri] = \"April\",PodatkiMožneStranke[Tehtano \nPredvidevanje],0),\"\"),\"\")","v":""},{"$f":"IFERROR(IF(PodatkiMožneStranke[Predvidevanje \nZapri] <>\"\",IF(PodatkiMožneStranke[Predvidevanje \nZapri] = \"Maj\",PodatkiMožneStranke[Tehtano \nPredvidevanje],0),\"\"),\"\")","v":""},{"$f":"IFERROR(IF(PodatkiMožneStranke[Predvidevanje \nZapri] <>\"\",IF(PodatkiMožneStranke[Predvidevanje \nZapri] = \"Junij\",PodatkiMožneStranke[Tehtano \nPredvidevanje],0),\"\"),\"\")","v":""},{"$f":"IFERROR(IF(PodatkiMožneStranke[Predvidevanje \nZapri] <>\"\",IF(PodatkiMožneStranke[Predvidevanje \nZapri] = \"Julij\",PodatkiMožneStranke[Tehtano \nPredvidevanje],0),\"\"),\"\")","v":""},{"$f":"IFERROR(IF(PodatkiMožneStranke[Predvidevanje \nZapri] <>\"\",IF(PodatkiMožneStranke[Predvidevanje \nZapri] = \"Avgust\",PodatkiMožneStranke[Tehtano \nPredvidevanje],0),\"\"),\"\")","v":""},{"$f":"IFERROR(IF(PodatkiMožneStranke[Predvidevanje \nZapri] <>\"\",IF(PodatkiMožneStranke[Predvidevanje \nZapri] = \"September\",PodatkiMožneStranke[Tehtano \nPredvidevanje],0),\"\"),\"\")","v":""},{"$f":"IFERROR(IF(PodatkiMožneStranke[Predvidevanje \nZapri] <>\"\",IF(PodatkiMožneStranke[Predvidevanje \nZapri] = \"Oktober\",PodatkiMožneStranke[Tehtano \nPredvidevanje],0),\"\"),\"\")","v":""},{"$f":"IFERROR(IF(PodatkiMožneStranke[Predvidevanje \nZapri] <>\"\",IF(PodatkiMožneStranke[Predvidevanje \nZapri] = \"November\",PodatkiMožneStranke[Tehtano \nPredvidevanje],0),\"\"),\"\")","v":""},{"$f":"IFERROR(IF(PodatkiMožneStranke[Predvidevanje \nZapri] <>\"\",IF(PodatkiMožneStranke[Predvidevanje \nZapri] = \"December\",PodatkiMožneStranke[Tehtano \nPredvidevanje],0),\"\"),\"\")","v":""}]
[null,{"$f":"IFERROR(IF(AND(PodatkiMožneStranke[Ime možne stranke] <> \"\", ROW(NapovedanaProdaja[Ime možne stranke])<>ZadnjiVnos),PodatkiMožneStranke[Ime možne stranke], \"\"),\"\")","v":""},{"$f":"IFERROR(IF(PodatkiMožneStranke[Predvidevanje \nZapri] <>\"\",IF(PodatkiMožneStranke[Predvidevanje \nZapri]= \"Januar\",PodatkiMožneStranke[Tehtano \nPredvidevanje],0),\"\"),\"\")","v":""},{"$f":"IFERROR(IF(PodatkiMožneStranke[Predvidevanje \nZapri] <>\"\",IF(PodatkiMožneStranke[Predvidevanje \nZapri] = \"Februar\",PodatkiMožneStranke[Tehtano \nPredvidevanje],0),\"\"),\"\")","v":""},{"$f":"IFERROR(IF(PodatkiMožneStranke[Predvidevanje \nZapri] <>\"\",IF(PodatkiMožneStranke[Predvidevanje \nZapri] = \"Marec\",PodatkiMožneStranke[Tehtano \nPredvidevanje],0),\"\"),\"\")","v":""},{"$f":"IFERROR(IF(PodatkiMožneStranke[Predvidevanje \nZapri] <>\"\",IF(PodatkiMožneStranke[Predvidevanje \nZapri] = \"April\",PodatkiMožneStranke[Tehtano \nPredvidevanje],0),\"\"),\"\")","v":""},{"$f":"IFERROR(IF(PodatkiMožneStranke[Predvidevanje \nZapri] <>\"\",IF(PodatkiMožneStranke[Predvidevanje \nZapri] = \"Maj\",PodatkiMožneStranke[Tehtano \nPredvidevanje],0),\"\"),\"\")","v":""},{"$f":"IFERROR(IF(PodatkiMožneStranke[Predvidevanje \nZapri] <>\"\",IF(PodatkiMožneStranke[Predvidevanje \nZapri] = \"Junij\",PodatkiMožneStranke[Tehtano \nPredvidevanje],0),\"\"),\"\")","v":""},{"$f":"IFERROR(IF(PodatkiMožneStranke[Predvidevanje \nZapri] <>\"\",IF(PodatkiMožneStranke[Predvidevanje \nZapri] = \"Julij\",PodatkiMožneStranke[Tehtano \nPredvidevanje],0),\"\"),\"\")","v":""},{"$f":"IFERROR(IF(PodatkiMožneStranke[Predvidevanje \nZapri] <>\"\",IF(PodatkiMožneStranke[Predvidevanje \nZapri] = \"Avgust\",PodatkiMožneStranke[Tehtano \nPredvidevanje],0),\"\"),\"\")","v":""},{"$f":"IFERROR(IF(PodatkiMožneStranke[Predvidevanje \nZapri] <>\"\",IF(PodatkiMožneStranke[Predvidevanje \nZapri] = \"September\",PodatkiMožneStranke[Tehtano \nPredvidevanje],0),\"\"),\"\")","v":""},{"$f":"IFERROR(IF(PodatkiMožneStranke[Predvidevanje \nZapri] <>\"\",IF(PodatkiMožneStranke[Predvidevanje \nZapri] = \"Oktober\",PodatkiMožneStranke[Tehtano \nPredvidevanje],0),\"\"),\"\")","v":""},{"$f":"IFERROR(IF(PodatkiMožneStranke[Predvidevanje \nZapri] <>\"\",IF(PodatkiMožneStranke[Predvidevanje \nZapri] = \"November\",PodatkiMožneStranke[Tehtano \nPredvidevanje],0),\"\"),\"\")","v":""},{"$f":"IFERROR(IF(PodatkiMožneStranke[Predvidevanje \nZapri] <>\"\",IF(PodatkiMožneStranke[Predvidevanje \nZapri] = \"December\",PodatkiMožneStranke[Tehtano \nPredvidevanje],0),\"\"),\"\")","v":""}]
[null,{"$f":"IFERROR(IF(AND(PodatkiMožneStranke[Ime možne stranke] <> \"\", ROW(NapovedanaProdaja[Ime možne stranke])<>ZadnjiVnos),PodatkiMožneStranke[Ime možne stranke], \"\"),\"\")","v":""},{"$f":"IFERROR(IF(PodatkiMožneStranke[Predvidevanje \nZapri] <>\"\",IF(PodatkiMožneStranke[Predvidevanje \nZapri]= \"Januar\",PodatkiMožneStranke[Tehtano \nPredvidevanje],0),\"\"),\"\")","v":""},{"$f":"IFERROR(IF(PodatkiMožneStranke[Predvidevanje \nZapri] <>\"\",IF(PodatkiMožneStranke[Predvidevanje \nZapri] = \"Februar\",PodatkiMožneStranke[Tehtano \nPredvidevanje],0),\"\"),\"\")","v":""},{"$f":"IFERROR(IF(PodatkiMožneStranke[Predvidevanje \nZapri] <>\"\",IF(PodatkiMožneStranke[Predvidevanje \nZapri] = \"Marec\",PodatkiMožneStranke[Tehtano \nPredvidevanje],0),\"\"),\"\")","v":""},{"$f":"IFERROR(IF(PodatkiMožneStranke[Predvidevanje \nZapri] <>\"\",IF(PodatkiMožneStranke[Predvidevanje \nZapri] = \"April\",PodatkiMožneStranke[Tehtano \nPredvidevanje],0),\"\"),\"\")","v":""},{"$f":"IFERROR(IF(PodatkiMožneStranke[Predvidevanje \nZapri] <>\"\",IF(PodatkiMožneStranke[Predvidevanje \nZapri] = \"Maj\",PodatkiMožneStranke[Tehtano \nPredvidevanje],0),\"\"),\"\")","v":""},{"$f":"IFERROR(IF(PodatkiMožneStranke[Predvidevanje \nZapri] <>\"\",IF(PodatkiMožneStranke[Predvidevanje \nZapri] = \"Junij\",PodatkiMožneStranke[Tehtano \nPredvidevanje],0),\"\"),\"\")","v":""},{"$f":"IFERROR(IF(PodatkiMožneStranke[Predvidevanje \nZapri] <>\"\",IF(PodatkiMožneStranke[Predvidevanje \nZapri] = \"Julij\",PodatkiMožneStranke[Tehtano \nPredvidevanje],0),\"\"),\"\")","v":""},{"$f":"IFERROR(IF(PodatkiMožneStranke[Predvidevanje \nZapri] <>\"\",IF(PodatkiMožneStranke[Predvidevanje \nZapri] = \"Avgust\",PodatkiMožneStranke[Tehtano \nPredvidevanje],0),\"\"),\"\")","v":""},{"$f":"IFERROR(IF(PodatkiMožneStranke[Predvidevanje \nZapri] <>\"\",IF(PodatkiMožneStranke[Predvidevanje \nZapri] = \"September\",PodatkiMožneStranke[Tehtano \nPredvidevanje],0),\"\"),\"\")","v":""},{"$f":"IFERROR(IF(PodatkiMožneStranke[Predvidevanje \nZapri] <>\"\",IF(PodatkiMožneStranke[Predvidevanje \nZapri] = \"Oktober\",PodatkiMožneStranke[Tehtano \nPredvidevanje],0),\"\"),\"\")","v":""},{"$f":"IFERROR(IF(PodatkiMožneStranke[Predvidevanje \nZapri] <>\"\",IF(PodatkiMožneStranke[Predvidevanje \nZapri] = \"November\",PodatkiMožneStranke[Tehtano \nPredvidevanje],0),\"\"),\"\")","v":""},{"$f":"IFERROR(IF(PodatkiMožneStranke[Predvidevanje \nZapri] <>\"\",IF(PodatkiMožneStranke[Predvidevanje \nZapri] = \"December\",PodatkiMožneStranke[Tehtano \nPredvidevanje],0),\"\"),\"\")","v":""}]
[null,{"$f":"IFERROR(IF(AND(PodatkiMožneStranke[Ime možne stranke] <> \"\", ROW(NapovedanaProdaja[Ime možne stranke])<>ZadnjiVnos),PodatkiMožneStranke[Ime možne stranke], \"\"),\"\")","v":""},{"$f":"IFERROR(IF(PodatkiMožneStranke[Predvidevanje \nZapri] <>\"\",IF(PodatkiMožneStranke[Predvidevanje \nZapri]= \"Januar\",PodatkiMožneStranke[Tehtano \nPredvidevanje],0),\"\"),\"\")","v":""},{"$f":"IFERROR(IF(PodatkiMožneStranke[Predvidevanje \nZapri] <>\"\",IF(PodatkiMožneStranke[Predvidevanje \nZapri] = \"Februar\",PodatkiMožneStranke[Tehtano \nPredvidevanje],0),\"\"),\"\")","v":""},{"$f":"IFERROR(IF(PodatkiMožneStranke[Predvidevanje \nZapri] <>\"\",IF(PodatkiMožneStranke[Predvidevanje \nZapri] = \"Marec\",PodatkiMožneStranke[Tehtano \nPredvidevanje],0),\"\"),\"\")","v":""},{"$f":"IFERROR(IF(PodatkiMožneStranke[Predvidevanje \nZapri] <>\"\",IF(PodatkiMožneStranke[Predvidevanje \nZapri] = \"April\",PodatkiMožneStranke[Tehtano \nPredvidevanje],0),\"\"),\"\")","v":""},{"$f":"IFERROR(IF(PodatkiMožneStranke[Predvidevanje \nZapri] <>\"\",IF(PodatkiMožneStranke[Predvidevanje \nZapri] = \"Maj\",PodatkiMožneStranke[Tehtano \nPredvidevanje],0),\"\"),\"\")","v":""},{"$f":"IFERROR(IF(PodatkiMožneStranke[Predvidevanje \nZapri] <>\"\",IF(PodatkiMožneStranke[Predvidevanje \nZapri] = \"Junij\",PodatkiMožneStranke[Tehtano \nPredvidevanje],0),\"\"),\"\")","v":""},{"$f":"IFERROR(IF(PodatkiMožneStranke[Predvidevanje \nZapri] <>\"\",IF(PodatkiMožneStranke[Predvidevanje \nZapri] = \"Julij\",PodatkiMožneStranke[Tehtano \nPredvidevanje],0),\"\"),\"\")","v":""},{"$f":"IFERROR(IF(PodatkiMožneStranke[Predvidevanje \nZapri] <>\"\",IF(PodatkiMožneStranke[Predvidevanje \nZapri] = \"Avgust\",PodatkiMožneStranke[Tehtano \nPredvidevanje],0),\"\"),\"\")","v":""},{"$f":"IFERROR(IF(PodatkiMožneStranke[Predvidevanje \nZapri] <>\"\",IF(PodatkiMožneStranke[Predvidevanje \nZapri] = \"September\",PodatkiMožneStranke[Tehtano \nPredvidevanje],0),\"\"),\"\")","v":""},{"$f":"IFERROR(IF(PodatkiMožneStranke[Predvidevanje \nZapri] <>\"\",IF(PodatkiMožneStranke[Predvidevanje \nZapri] = \"Oktober\",PodatkiMožneStranke[Tehtano \nPredvidevanje],0),\"\"),\"\")","v":""},{"$f":"IFERROR(IF(PodatkiMožneStranke[Predvidevanje \nZapri] <>\"\",IF(PodatkiMožneStranke[Predvidevanje \nZapri] = \"November\",PodatkiMožneStranke[Tehtano \nPredvidevanje],0),\"\"),\"\")","v":""},{"$f":"IFERROR(IF(PodatkiMožneStranke[Predvidevanje \nZapri] <>\"\",IF(PodatkiMožneStranke[Predvidevanje \nZapri] = \"December\",PodatkiMožneStranke[Tehtano \nPredvidevanje],0),\"\"),\"\")","v":""}]
[null,{"$f":"IFERROR(IF(AND(PodatkiMožneStranke[Ime možne stranke] <> \"\", ROW(NapovedanaProdaja[Ime možne stranke])<>ZadnjiVnos),PodatkiMožneStranke[Ime možne stranke], \"\"),\"\")","v":""},{"$f":"IFERROR(IF(PodatkiMožneStranke[Predvidevanje \nZapri] <>\"\",IF(PodatkiMožneStranke[Predvidevanje \nZapri]= \"Januar\",PodatkiMožneStranke[Tehtano \nPredvidevanje],0),\"\"),\"\")","v":""},{"$f":"IFERROR(IF(PodatkiMožneStranke[Predvidevanje \nZapri] <>\"\",IF(PodatkiMožneStranke[Predvidevanje \nZapri] = \"Februar\",PodatkiMožneStranke[Tehtano \nPredvidevanje],0),\"\"),\"\")","v":""},{"$f":"IFERROR(IF(PodatkiMožneStranke[Predvidevanje \nZapri] <>\"\",IF(PodatkiMožneStranke[Predvidevanje \nZapri] = \"Marec\",PodatkiMožneStranke[Tehtano \nPredvidevanje],0),\"\"),\"\")","v":""},{"$f":"IFERROR(IF(PodatkiMožneStranke[Predvidevanje \nZapri] <>\"\",IF(PodatkiMožneStranke[Predvidevanje \nZapri] = \"April\",PodatkiMožneStranke[Tehtano \nPredvidevanje],0),\"\"),\"\")","v":""},{"$f":"IFERROR(IF(PodatkiMožneStranke[Predvidevanje \nZapri] <>\"\",IF(PodatkiMožneStranke[Predvidevanje \nZapri] = \"Maj\",PodatkiMožneStranke[Tehtano \nPredvidevanje],0),\"\"),\"\")","v":""},{"$f":"IFERROR(IF(PodatkiMožneStranke[Predvidevanje \nZapri] <>\"\",IF(PodatkiMožneStranke[Predvidevanje \nZapri] = \"Junij\",PodatkiMožneStranke[Tehtano \nPredvidevanje],0),\"\"),\"\")","v":""},{"$f":"IFERROR(IF(PodatkiMožneStranke[Predvidevanje \nZapri] <>\"\",IF(PodatkiMožneStranke[Predvidevanje \nZapri] = \"Julij\",PodatkiMožneStranke[Tehtano \nPredvidevanje],0),\"\"),\"\")","v":""},{"$f":"IFERROR(IF(PodatkiMožneStranke[Predvidevanje \nZapri] <>\"\",IF(PodatkiMožneStranke[Predvidevanje \nZapri] = \"Avgust\",PodatkiMožneStranke[Tehtano \nPredvidevanje],0),\"\"),\"\")","v":""},{"$f":"IFERROR(IF(PodatkiMožneStranke[Predvidevanje \nZapri] <>\"\",IF(PodatkiMožneStranke[Predvidevanje \nZapri] = \"September\",PodatkiMožneStranke[Tehtano \nPredvidevanje],0),\"\"),\"\")","v":""},{"$f":"IFERROR(IF(PodatkiMožneStranke[Predvidevanje \nZapri] <>\"\",IF(PodatkiMožneStranke[Predvidevanje \nZapri] = \"Oktober\",PodatkiMožneStranke[Tehtano \nPredvidevanje],0),\"\"),\"\")","v":""},{"$f":"IFERROR(IF(PodatkiMožneStranke[Predvidevanje \nZapri] <>\"\",IF(PodatkiMožneStranke[Predvidevanje \nZapri] = \"November\",PodatkiMožneStranke[Tehtano \nPredvidevanje],0),\"\"),\"\")","v":""},{"$f":"IFERROR(IF(PodatkiMožneStranke[Predvidevanje \nZapri] <>\"\",IF(PodatkiMožneStranke[Predvidevanje \nZapri] = \"December\",PodatkiMožneStranke[Tehtano \nPredvidevanje],0),\"\"),\"\")","v":""}]
[null,{"$f":"IFERROR(IF(AND(PodatkiMožneStranke[Ime možne stranke] <> \"\", ROW(NapovedanaProdaja[Ime možne stranke])<>ZadnjiVnos),PodatkiMožneStranke[Ime možne stranke], \"\"),\"\")","v":""},{"$f":"IFERROR(IF(PodatkiMožneStranke[Predvidevanje \nZapri] <>\"\",IF(PodatkiMožneStranke[Predvidevanje \nZapri]= \"Januar\",PodatkiMožneStranke[Tehtano \nPredvidevanje],0),\"\"),\"\")","v":""},{"$f":"IFERROR(IF(PodatkiMožneStranke[Predvidevanje \nZapri] <>\"\",IF(PodatkiMožneStranke[Predvidevanje \nZapri] = \"Februar\",PodatkiMožneStranke[Tehtano \nPredvidevanje],0),\"\"),\"\")","v":""},{"$f":"IFERROR(IF(PodatkiMožneStranke[Predvidevanje \nZapri] <>\"\",IF(PodatkiMožneStranke[Predvidevanje \nZapri] = \"Marec\",PodatkiMožneStranke[Tehtano \nPredvidevanje],0),\"\"),\"\")","v":""},{"$f":"IFERROR(IF(PodatkiMožneStranke[Predvidevanje \nZapri] <>\"\",IF(PodatkiMožneStranke[Predvidevanje \nZapri] = \"April\",PodatkiMožneStranke[Tehtano \nPredvidevanje],0),\"\"),\"\")","v":""},{"$f":"IFERROR(IF(PodatkiMožneStranke[Predvidevanje \nZapri] <>\"\",IF(PodatkiMožneStranke[Predvidevanje \nZapri] = \"Maj\",PodatkiMožneStranke[Tehtano \nPredvidevanje],0),\"\"),\"\")","v":""},{"$f":"IFERROR(IF(PodatkiMožneStranke[Predvidevanje \nZapri] <>\"\",IF(PodatkiMožneStranke[Predvidevanje \nZapri] = \"Junij\",PodatkiMožneStranke[Tehtano \nPredvidevanje],0),\"\"),\"\")","v":""},{"$f":"IFERROR(IF(PodatkiMožneStranke[Predvidevanje \nZapri] <>\"\",IF(PodatkiMožneStranke[Predvidevanje \nZapri] = \"Julij\",PodatkiMožneStranke[Tehtano \nPredvidevanje],0),\"\"),\"\")","v":""},{"$f":"IFERROR(IF(PodatkiMožneStranke[Predvidevanje \nZapri] <>\"\",IF(PodatkiMožneStranke[Predvidevanje \nZapri] = \"Avgust\",PodatkiMožneStranke[Tehtano \nPredvidevanje],0),\"\"),\"\")","v":""},{"$f":"IFERROR(IF(PodatkiMožneStranke[Predvidevanje \nZapri] <>\"\",IF(PodatkiMožneStranke[Predvidevanje \nZapri] = \"September\",PodatkiMožneStranke[Tehtano \nPredvidevanje],0),\"\"),\"\")","v":""},{"$f":"IFERROR(IF(PodatkiMožneStranke[Predvidevanje \nZapri] <>\"\",IF(PodatkiMožneStranke[Predvidevanje \nZapri] = \"Oktober\",PodatkiMožneStranke[Tehtano \nPredvidevanje],0),\"\"),\"\")","v":""},{"$f":"IFERROR(IF(PodatkiMožneStranke[Predvidevanje \nZapri] <>\"\",IF(PodatkiMožneStranke[Predvidevanje \nZapri] = \"November\",PodatkiMožneStranke[Tehtano \nPredvidevanje],0),\"\"),\"\")","v":""},{"$f":"IFERROR(IF(PodatkiMožneStranke[Predvidevanje \nZapri] <>\"\",IF(PodatkiMožneStranke[Predvidevanje \nZapri] = \"December\",PodatkiMožneStranke[Tehtano \nPredvidevanje],0),\"\"),\"\")","v":""}]
[null,{"$f":"IFERROR(IF(AND(PodatkiMožneStranke[Ime možne stranke] <> \"\", ROW(NapovedanaProdaja[Ime možne stranke])<>ZadnjiVnos),PodatkiMožneStranke[Ime možne stranke], \"\"),\"\")","v":""},{"$f":"IFERROR(IF(PodatkiMožneStranke[Predvidevanje \nZapri] <>\"\",IF(PodatkiMožneStranke[Predvidevanje \nZapri]= \"Januar\",PodatkiMožneStranke[Tehtano \nPredvidevanje],0),\"\"),\"\")","v":""},{"$f":"IFERROR(IF(PodatkiMožneStranke[Predvidevanje \nZapri] <>\"\",IF(PodatkiMožneStranke[Predvidevanje \nZapri] = \"Februar\",PodatkiMožneStranke[Tehtano \nPredvidevanje],0),\"\"),\"\")","v":""},{"$f":"IFERROR(IF(PodatkiMožneStranke[Predvidevanje \nZapri] <>\"\",IF(PodatkiMožneStranke[Predvidevanje \nZapri] = \"Marec\",PodatkiMožneStranke[Tehtano \nPredvidevanje],0),\"\"),\"\")","v":""},{"$f":"IFERROR(IF(PodatkiMožneStranke[Predvidevanje \nZapri] <>\"\",IF(PodatkiMožneStranke[Predvidevanje \nZapri] = \"April\",PodatkiMožneStranke[Tehtano \nPredvidevanje],0),\"\"),\"\")","v":""},{"$f":"IFERROR(IF(PodatkiMožneStranke[Predvidevanje \nZapri] <>\"\",IF(PodatkiMožneStranke[Predvidevanje \nZapri] = \"Maj\",PodatkiMožneStranke[Tehtano \nPredvidevanje],0),\"\"),\"\")","v":""},{"$f":"IFERROR(IF(PodatkiMožneStranke[Predvidevanje \nZapri] <>\"\",IF(PodatkiMožneStranke[Predvidevanje \nZapri] = \"Junij\",PodatkiMožneStranke[Tehtano \nPredvidevanje],0),\"\"),\"\")","v":""},{"$f":"IFERROR(IF(PodatkiMožneStranke[Predvidevanje \nZapri] <>\"\",IF(PodatkiMožneStranke[Predvidevanje \nZapri] = \"Julij\",PodatkiMožneStranke[Tehtano \nPredvidevanje],0),\"\"),\"\")","v":""},{"$f":"IFERROR(IF(PodatkiMožneStranke[Predvidevanje \nZapri] <>\"\",IF(PodatkiMožneStranke[Predvidevanje \nZapri] = \"Avgust\",PodatkiMožneStranke[Tehtano \nPredvidevanje],0),\"\"),\"\")","v":""},{"$f":"IFERROR(IF(PodatkiMožneStranke[Predvidevanje \nZapri] <>\"\",IF(PodatkiMožneStranke[Predvidevanje \nZapri] = \"September\",PodatkiMožneStranke[Tehtano \nPredvidevanje],0),\"\"),\"\")","v":""},{"$f":"IFERROR(IF(PodatkiMožneStranke[Predvidevanje \nZapri] <>\"\",IF(PodatkiMožneStranke[Predvidevanje \nZapri] = \"Oktober\",PodatkiMožneStranke[Tehtano \nPredvidevanje],0),\"\"),\"\")","v":""},{"$f":"IFERROR(IF(PodatkiMožneStranke[Predvidevanje \nZapri] <>\"\",IF(PodatkiMožneStranke[Predvidevanje \nZapri] = \"November\",PodatkiMožneStranke[Tehtano \nPredvidevanje],0),\"\"),\"\")","v":""},{"$f":"IFERROR(IF(PodatkiMožneStranke[Predvidevanje \nZapri] <>\"\",IF(PodatkiMožneStranke[Predvidevanje \nZapri] = \"December\",PodatkiMožneStranke[Tehtano \nPredvidevanje],0),\"\"),\"\")","v":""}]
[null,{"$f":"IFERROR(IF(AND(PodatkiMožneStranke[Ime možne stranke] <> \"\", ROW(NapovedanaProdaja[Ime možne stranke])<>ZadnjiVnos),PodatkiMožneStranke[Ime možne stranke], \"\"),\"\")","v":""},{"$f":"IFERROR(IF(PodatkiMožneStranke[Predvidevanje \nZapri] <>\"\",IF(PodatkiMožneStranke[Predvidevanje \nZapri]= \"Januar\",PodatkiMožneStranke[Tehtano \nPredvidevanje],0),\"\"),\"\")","v":""},{"$f":"IFERROR(IF(PodatkiMožneStranke[Predvidevanje \nZapri] <>\"\",IF(PodatkiMožneStranke[Predvidevanje \nZapri] = \"Februar\",PodatkiMožneStranke[Tehtano \nPredvidevanje],0),\"\"),\"\")","v":""},{"$f":"IFERROR(IF(PodatkiMožneStranke[Predvidevanje \nZapri] <>\"\",IF(PodatkiMožneStranke[Predvidevanje \nZapri] = \"Marec\",PodatkiMožneStranke[Tehtano \nPredvidevanje],0),\"\"),\"\")","v":""},{"$f":"IFERROR(IF(PodatkiMožneStranke[Predvidevanje \nZapri] <>\"\",IF(PodatkiMožneStranke[Predvidevanje \nZapri] = \"April\",PodatkiMožneStranke[Tehtano \nPredvidevanje],0),\"\"),\"\")","v":""},{"$f":"IFERROR(IF(PodatkiMožneStranke[Predvidevanje \nZapri] <>\"\",IF(PodatkiMožneStranke[Predvidevanje \nZapri] = \"Maj\",PodatkiMožneStranke[Tehtano \nPredvidevanje],0),\"\"),\"\")","v":""},{"$f":"IFERROR(IF(PodatkiMožneStranke[Predvidevanje \nZapri] <>\"\",IF(PodatkiMožneStranke[Predvidevanje \nZapri] = \"Junij\",PodatkiMožneStranke[Tehtano \nPredvidevanje],0),\"\"),\"\")","v":""},{"$f":"IFERROR(IF(PodatkiMožneStranke[Predvidevanje \nZapri] <>\"\",IF(PodatkiMožneStranke[Predvidevanje \nZapri] = \"Julij\",PodatkiMožneStranke[Tehtano \nPredvidevanje],0),\"\"),\"\")","v":""},{"$f":"IFERROR(IF(PodatkiMožneStranke[Predvidevanje \nZapri] <>\"\",IF(PodatkiMožneStranke[Predvidevanje \nZapri] = \"Avgust\",PodatkiMožneStranke[Tehtano \nPredvidevanje],0),\"\"),\"\")","v":""},{"$f":"IFERROR(IF(PodatkiMožneStranke[Predvidevanje \nZapri] <>\"\",IF(PodatkiMožneStranke[Predvidevanje \nZapri] = \"September\",PodatkiMožneStranke[Tehtano \nPredvidevanje],0),\"\"),\"\")","v":""},{"$f":"IFERROR(IF(PodatkiMožneStranke[Predvidevanje \nZapri] <>\"\",IF(PodatkiMožneStranke[Predvidevanje \nZapri] = \"Oktober\",PodatkiMožneStranke[Tehtano \nPredvidevanje],0),\"\"),\"\")","v":""},{"$f":"IFERROR(IF(PodatkiMožneStranke[Predvidevanje \nZapri] <>\"\",IF(PodatkiMožneStranke[Predvidevanje \nZapri] = \"November\",PodatkiMožneStranke[Tehtano \nPredvidevanje],0),\"\"),\"\")","v":""},{"$f":"IFERROR(IF(PodatkiMožneStranke[Predvidevanje \nZapri] <>\"\",IF(PodatkiMožneStranke[Predvidevanje \nZapri] = \"December\",PodatkiMožneStranke[Tehtano \nPredvidevanje],0),\"\"),\"\")","v":""}]
[null,{"$f":"IFERROR(IF(AND(PodatkiMožneStranke[Ime možne stranke] <> \"\", ROW(NapovedanaProdaja[Ime možne stranke])<>ZadnjiVnos),PodatkiMožneStranke[Ime možne stranke], \"\"),\"\")","v":""},{"$f":"IFERROR(IF(PodatkiMožneStranke[Predvidevanje \nZapri] <>\"\",IF(PodatkiMožneStranke[Predvidevanje \nZapri]= \"Januar\",PodatkiMožneStranke[Tehtano \nPredvidevanje],0),\"\"),\"\")","v":""},{"$f":"IFERROR(IF(PodatkiMožneStranke[Predvidevanje \nZapri] <>\"\",IF(PodatkiMožneStranke[Predvidevanje \nZapri] = \"Februar\",PodatkiMožneStranke[Tehtano \nPredvidevanje],0),\"\"),\"\")","v":""},{"$f":"IFERROR(IF(PodatkiMožneStranke[Predvidevanje \nZapri] <>\"\",IF(PodatkiMožneStranke[Predvidevanje \nZapri] = \"Marec\",PodatkiMožneStranke[Tehtano \nPredvidevanje],0),\"\"),\"\")","v":""},{"$f":"IFERROR(IF(PodatkiMožneStranke[Predvidevanje \nZapri] <>\"\",IF(PodatkiMožneStranke[Predvidevanje \nZapri] = \"April\",PodatkiMožneStranke[Tehtano \nPredvidevanje],0),\"\"),\"\")","v":""},{"$f":"IFERROR(IF(PodatkiMožneStranke[Predvidevanje \nZapri] <>\"\",IF(PodatkiMožneStranke[Predvidevanje \nZapri] = \"Maj\",PodatkiMožneStranke[Tehtano \nPredvidevanje],0),\"\"),\"\")","v":""},{"$f":"IFERROR(IF(PodatkiMožneStranke[Predvidevanje \nZapri] <>\"\",IF(PodatkiMožneStranke[Predvidevanje \nZapri] = \"Junij\",PodatkiMožneStranke[Tehtano \nPredvidevanje],0),\"\"),\"\")","v":""},{"$f":"IFERROR(IF(PodatkiMožneStranke[Predvidevanje \nZapri] <>\"\",IF(PodatkiMožneStranke[Predvidevanje \nZapri] = \"Julij\",PodatkiMožneStranke[Tehtano \nPredvidevanje],0),\"\"),\"\")","v":""},{"$f":"IFERROR(IF(PodatkiMožneStranke[Predvidevanje \nZapri] <>\"\",IF(PodatkiMožneStranke[Predvidevanje \nZapri] = \"Avgust\",PodatkiMožneStranke[Tehtano \nPredvidevanje],0),\"\"),\"\")","v":""},{"$f":"IFERROR(IF(PodatkiMožneStranke[Predvidevanje \nZapri] <>\"\",IF(PodatkiMožneStranke[Predvidevanje \nZapri] = \"September\",PodatkiMožneStranke[Tehtano \nPredvidevanje],0),\"\"),\"\")","v":""},{"$f":"IFERROR(IF(PodatkiMožneStranke[Predvidevanje \nZapri] <>\"\",IF(PodatkiMožneStranke[Predvidevanje \nZapri] = \"Oktober\",PodatkiMožneStranke[Tehtano \nPredvidevanje],0),\"\"),\"\")","v":""},{"$f":"IFERROR(IF(PodatkiMožneStranke[Predvidevanje \nZapri] <>\"\",IF(PodatkiMožneStranke[Predvidevanje \nZapri] = \"November\",PodatkiMožneStranke[Tehtano \nPredvidevanje],0),\"\"),\"\")","v":""},{"$f":"IFERROR(IF(PodatkiMožneStranke[Predvidevanje \nZapri] <>\"\",IF(PodatkiMožneStranke[Predvidevanje \nZapri] = \"December\",PodatkiMožneStranke[Tehtano \nPredvidevanje],0),\"\"),\"\")","v":""}]
[null,{"$f":"IFERROR(IF(AND(PodatkiMožneStranke[Ime možne stranke] <> \"\", ROW(NapovedanaProdaja[Ime možne stranke])<>ZadnjiVnos),PodatkiMožneStranke[Ime možne stranke], \"\"),\"\")","v":""},{"$f":"IFERROR(IF(PodatkiMožneStranke[Predvidevanje \nZapri] <>\"\",IF(PodatkiMožneStranke[Predvidevanje \nZapri]= \"Januar\",PodatkiMožneStranke[Tehtano \nPredvidevanje],0),\"\"),\"\")","v":""},{"$f":"IFERROR(IF(PodatkiMožneStranke[Predvidevanje \nZapri] <>\"\",IF(PodatkiMožneStranke[Predvidevanje \nZapri] = \"Februar\",PodatkiMožneStranke[Tehtano \nPredvidevanje],0),\"\"),\"\")","v":""},{"$f":"IFERROR(IF(PodatkiMožneStranke[Predvidevanje \nZapri] <>\"\",IF(PodatkiMožneStranke[Predvidevanje \nZapri] = \"Marec\",PodatkiMožneStranke[Tehtano \nPredvidevanje],0),\"\"),\"\")","v":""},{"$f":"IFERROR(IF(PodatkiMožneStranke[Predvidevanje \nZapri] <>\"\",IF(PodatkiMožneStranke[Predvidevanje \nZapri] = \"April\",PodatkiMožneStranke[Tehtano \nPredvidevanje],0),\"\"),\"\")","v":""},{"$f":"IFERROR(IF(PodatkiMožneStranke[Predvidevanje \nZapri] <>\"\",IF(PodatkiMožneStranke[Predvidevanje \nZapri] = \"Maj\",PodatkiMožneStranke[Tehtano \nPredvidevanje],0),\"\"),\"\")","v":""},{"$f":"IFERROR(IF(PodatkiMožneStranke[Predvidevanje \nZapri] <>\"\",IF(PodatkiMožneStranke[Predvidevanje \nZapri] = \"Junij\",PodatkiMožneStranke[Tehtano \nPredvidevanje],0),\"\"),\"\")","v":""},{"$f":"IFERROR(IF(PodatkiMožneStranke[Predvidevanje \nZapri] <>\"\",IF(PodatkiMožneStranke[Predvidevanje \nZapri] = \"Julij\",PodatkiMožneStranke[Tehtano \nPredvidevanje],0),\"\"),\"\")","v":""},{"$f":"IFERROR(IF(PodatkiMožneStranke[Predvidevanje \nZapri] <>\"\",IF(PodatkiMožneStranke[Predvidevanje \nZapri] = \"Avgust\",PodatkiMožneStranke[Tehtano \nPredvidevanje],0),\"\"),\"\")","v":""},{"$f":"IFERROR(IF(PodatkiMožneStranke[Predvidevanje \nZapri] <>\"\",IF(PodatkiMožneStranke[Predvidevanje \nZapri] = \"September\",PodatkiMožneStranke[Tehtano \nPredvidevanje],0),\"\"),\"\")","v":""},{"$f":"IFERROR(IF(PodatkiMožneStranke[Predvidevanje \nZapri] <>\"\",IF(PodatkiMožneStranke[Predvidevanje \nZapri] = \"Oktober\",PodatkiMožneStranke[Tehtano \nPredvidevanje],0),\"\"),\"\")","v":""},{"$f":"IFERROR(IF(PodatkiMožneStranke[Predvidevanje \nZapri] <>\"\",IF(PodatkiMožneStranke[Predvidevanje \nZapri] = \"November\",PodatkiMožneStranke[Tehtano \nPredvidevanje],0),\"\"),\"\")","v":""},{"$f":"IFERROR(IF(PodatkiMožneStranke[Predvidevanje \nZapri] <>\"\",IF(PodatkiMožneStranke[Predvidevanje \nZapri] = \"December\",PodatkiMožneStranke[Tehtano \nPredvidevanje],0),\"\"),\"\")","v":""}]
[null,{"$f":"IFERROR(IF(AND(PodatkiMožneStranke[Ime možne stranke] <> \"\", ROW(NapovedanaProdaja[Ime možne stranke])<>ZadnjiVnos),PodatkiMožneStranke[Ime možne stranke], \"\"),\"\")","v":""},{"$f":"IFERROR(IF(PodatkiMožneStranke[Predvidevanje \nZapri] <>\"\",IF(PodatkiMožneStranke[Predvidevanje \nZapri]= \"Januar\",PodatkiMožneStranke[Tehtano \nPredvidevanje],0),\"\"),\"\")","v":""},{"$f":"IFERROR(IF(PodatkiMožneStranke[Predvidevanje \nZapri] <>\"\",IF(PodatkiMožneStranke[Predvidevanje \nZapri] = \"Februar\",PodatkiMožneStranke[Tehtano \nPredvidevanje],0),\"\"),\"\")","v":""},{"$f":"IFERROR(IF(PodatkiMožneStranke[Predvidevanje \nZapri] <>\"\",IF(PodatkiMožneStranke[Predvidevanje \nZapri] = \"Marec\",PodatkiMožneStranke[Tehtano \nPredvidevanje],0),\"\"),\"\")","v":""},{"$f":"IFERROR(IF(PodatkiMožneStranke[Predvidevanje \nZapri] <>\"\",IF(PodatkiMožneStranke[Predvidevanje \nZapri] = \"April\",PodatkiMožneStranke[Tehtano \nPredvidevanje],0),\"\"),\"\")","v":""},{"$f":"IFERROR(IF(PodatkiMožneStranke[Predvidevanje \nZapri] <>\"\",IF(PodatkiMožneStranke[Predvidevanje \nZapri] = \"Maj\",PodatkiMožneStranke[Tehtano \nPredvidevanje],0),\"\"),\"\")","v":""},{"$f":"IFERROR(IF(PodatkiMožneStranke[Predvidevanje \nZapri] <>\"\",IF(PodatkiMožneStranke[Predvidevanje \nZapri] = \"Junij\",PodatkiMožneStranke[Tehtano \nPredvidevanje],0),\"\"),\"\")","v":""},{"$f":"IFERROR(IF(PodatkiMožneStranke[Predvidevanje \nZapri] <>\"\",IF(PodatkiMožneStranke[Predvidevanje \nZapri] = \"Julij\",PodatkiMožneStranke[Tehtano \nPredvidevanje],0),\"\"),\"\")","v":""},{"$f":"IFERROR(IF(PodatkiMožneStranke[Predvidevanje \nZapri] <>\"\",IF(PodatkiMožneStranke[Predvidevanje \nZapri] = \"Avgust\",PodatkiMožneStranke[Tehtano \nPredvidevanje],0),\"\"),\"\")","v":""},{"$f":"IFERROR(IF(PodatkiMožneStranke[Predvidevanje \nZapri] <>\"\",IF(PodatkiMožneStranke[Predvidevanje \nZapri] = \"September\",PodatkiMožneStranke[Tehtano \nPredvidevanje],0),\"\"),\"\")","v":""},{"$f":"IFERROR(IF(PodatkiMožneStranke[Predvidevanje \nZapri] <>\"\",IF(PodatkiMožneStranke[Predvidevanje \nZapri] = \"Oktober\",PodatkiMožneStranke[Tehtano \nPredvidevanje],0),\"\"),\"\")","v":""},{"$f":"IFERROR(IF(PodatkiMožneStranke[Predvidevanje \nZapri] <>\"\",IF(PodatkiMožneStranke[Predvidevanje \nZapri] = \"November\",PodatkiMožneStranke[Tehtano \nPredvidevanje],0),\"\"),\"\")","v":""},{"$f":"IFERROR(IF(PodatkiMožneStranke[Predvidevanje \nZapri] <>\"\",IF(PodatkiMožneStranke[Predvidevanje \nZapri] = \"December\",PodatkiMožneStranke[Tehtano \nPredvidevanje],0),\"\"),\"\")","v":""}]
[null,"Skupaj",{"$f":"SUBTOTAL(109,NapovedanaProdaja[Januar \nPredvidevanje])","v":{"v":270000,"d":"270,000 €"}},{"$f":"SUBTOTAL(109,NapovedanaProdaja[Februar \nPredvidevanje])","v":{"v":20000,"d":"20,000 €"}},{"$f":"SUBTOTAL(109,NapovedanaProdaja[Marec \nPredvidevanje])","v":{"v":20000,"d":"20,000 €"}},{"$f":"SUBTOTAL(109,NapovedanaProdaja[April \nPredvidevanje])","v":{"v":0,"d":"0 €"}},{"$f":"SUBTOTAL(109,NapovedanaProdaja[Maj \nPredvidevanje])","v":{"v":0,"d":"0 €"}},{"$f":"SUBTOTAL(109,NapovedanaProdaja[Junij \nPredvidevanje])","v":{"v":0,"d":"0 €"}},{"$f":"SUBTOTAL(109,NapovedanaProdaja[Julij napoved])","v":{"v":0,"d":"0 €"}},{"$f":"SUBTOTAL(109,NapovedanaProdaja[Avgust \nPredvidevanje])","v":{"v":0,"d":"0 €"}},{"$f":"SUBTOTAL(109,NapovedanaProdaja[September \nPredvidevanje])","v":{"v":0,"d":"0 €"}},{"$f":"SUBTOTAL(109,NapovedanaProdaja[Oktober \nPredvidevanje])","v":{"v":0,"d":"0 €"}},{"$f":"SUBTOTAL(109,NapovedanaProdaja[November \nPredvidevanje])","v":{"v":0,"d":"0 €"}},{"$f":"SUBTOTAL(109,NapovedanaProdaja[December \nPredvidevanje])","v":{"v":0,"d":"0 €"}}]
[null,"Kumulativno skupaj",{"$f":"C20","v":{"v":270000,"d":"270,000 €"}},{"$f":"C21+D20","v":{"v":290000,"d":"290,000 €"}},{"$f":"D21+E20","v":{"v":310000,"d":"310,000 €"}},{"$f":"E21+F20","v":{"v":310000,"d":"310,000 €"}},{"$f":"F21+G20","v":{"v":310000,"d":"310,000 €"}},{"$f":"G21+H20","v":{"v":310000,"d":"310,000 €"}},{"$f":"H21+I20","v":{"v":310000,"d":"310,000 €"}},{"$f":"I21+J20","v":{"v":310000,"d":"310,000 €"}},{"$f":"J21+K20","v":{"v":310000,"d":"310,000 €"}},{"$f":"K21+L20","v":{"v":310000,"d":"310,000 €"}},{"$f":"L21+M20","v":{"v":310000,"d":"310,000 €"}},{"$f":"M21+N20","v":{"v":310000,"d":"310,000 €"}}]

{"sheet":"Mesečna tehtana napoved","index":2,"n_rows":3,"n_cols":2,"rows_kept":3}
[null,{"$f":"Ime_podjetja","v":"Ime podjetja"}]
[null,"Mesečna tehtana napoved"]
[null," "]